fUST/lending_fUST_20250310
["ID","MTS","AMOUNT","RATE_DAILY","PERIOD"]
[355792369,1741563059401,-160.0,0.000675,120]
[355792370,1741563059411,-500.0,0.00067808,120]
[355792371,1741563059421,-500.0,0.00067816,120]
[355792372,1741563059432,-174.0,0.00068,120]
[355792373,1741563059443,-1751.0,0.00068,120]
[355792374,1741563059453,-457.0,0.00068,120]
[355792375,1741563059463,-505.0,0.00068,120]
[355792376,1741563059473,-500.0,0.00068356,120]
[355792377,1741563059483,-666.0,0.00068493,120]
[355792378,1741563059493,-1000.0,0.000688,90]
[355792379,1741563059504,-500.0,0.00068904,120]
[355792380,1741563059515,-66569.42646073,0.00068989,120]
[355792381,1741563059525,-4890.54,0.00069,30]
[355792382,1741563059536,-500.0,0.00069452,120]
[355792383,1741563059546,-388.93672112,0.0007,120]
[355792384,1741563059555,-174.0,0.0007,120]
[355792385,1741563059565,-1751.0,0.0007,120]
[355792386,1741563059577,-457.0,0.0007,120]
[355792387,1741563059588,-2000.0,0.0007,120]
[355792388,1741563059597,-505.0,0.0007,120]
[355792389,1741563059608,-160.0,0.0007,120]
[355792390,1741563059618,-20557.37497531,0.0007,120]
[355792391,1741563059629,-170.73892655,0.0007,120]
[355792392,1741563059640,-2500.0,0.00070244,15]
[355792393,1741563059650,-2500.0,0.00070244,2]
[355792394,1741563059660,-150.0,0.00071765,15]
[355792395,1741563059670,-500.0,0.00073136,120]
[355792396,1741563059680,-10000.0,0.00073973,12]
[355792397,1741563059690,-2000.0,0.00074445,14]
[355792398,1741563059701,-2000.0,0.00074445,15]
[355792399,1741563059711,-2000.0,0.00074445,14]
[355792400,1741563059720,-162.39,0.00075,30]
[355792401,1741563059731,-11694.01259843,0.00075444,120]
[355792402,1741563059740,-150.0,0.00077245,15]
[355792403,1741563059750,-500.0,0.00078457,120]
[355792404,1741563059759,-242.2913545,0.00079999,30]
[355792405,1741563059769,-670.81808438,0.0008,50]
[355792406,1741563059779,-2802.65457017,0.0008,120]
[355792407,1741563059789,-208.42928153,0.0008,120]
[355792408,1741563059799,-2887.42,0.000802,14]
[355792409,1741563059809,-151.0,0.00080384,120]
[355792410,1741563059818,-421.432484,0.00082191,30]
[355792411,1741563059828,-421.432484,0.00082191,30]
[355792412,1741563059838,-151.0,0.00082191,120]
[355792413,1741563059849,-151.0,0.00082191,120]
[355792414,1741563059859,-500.0,0.00082191,120]
[355792415,1741563059869,-500.0,0.00082191,120]
[355792416,1741563059879,-500.0,0.00082191,120]
[355792417,1741563059890,-500.0,0.00082191,120]
[355792418,1741563059899,-500.0,0.00082191,120]
[355792419,1741563059909,-500.0,0.00082191,120]
[355792420,1741563059919,-500.0,0.00082191,120]
[355792421,1741563059929,-500.0,0.00082191,120]
[355792422,1741563059938,-500.0,0.00082191,120]
[355792423,1741563059948,-500.0,0.00082191,120]
[355792424,1741563059958,-500.0,0.00082191,120]
[355792425,1741563059968,-500.0,0.00082191,120]
[355792426,1741563059978,-207.21188751,0.00082191,120]
[355792427,1741563059988,-666.0,0.00082191,120]
[355792428,1741563059998,-213.97021681,0.00082192,60]
[355792429,1741563060007,-150.0,0.00082724,15]
[355792430,1741563060017,-500.0,0.00083778,120]
[355792431,1741563060027,-3800.0,0.00085,120]
[355792432,1741563060037,-246.72,0.00086,60]
[355792433,1741563060047,-3000.0,0.0008767,60]
[355792434,1741563060057,-1090.12393875,0.0008767,2]
[355792435,1741563060069,-150.0,0.00088204,15]
[355792436,1741563060079,-500.0,0.00089099,120]
[355792437,1741563060090,-2049.49840494,0.00089808,14]
[355792438,1741563060100,-2500.0,0.00089808,60]
[355792439,1741563060110,-2500.0,0.00089808,14]
[355792440,1741563060120,-600.0,0.0009,120]
[355792441,1741563060130,-40000.0,0.0009263,120]
[355792442,1741563060140,-150.0,0.00093683,15]
[355792443,1741563060150,-50036.1063,0.000944,120]
[355792444,1741563060160,-500.0,0.0009442,120]
[355792445,1741563060170,-6142.68593689,0.0009488,60]
[355792446,1741563060181,-167.45,0.00095,60]
[355792447,1741563060191,-734.05,0.00095,60]
[355792448,1741563060202,-472.75,0.00095,60]
[355792449,1741563060213,-1000.0,0.00095649,120]
[355792450,1741563060223,-666.0,0.0009589,120]
[355792451,1741563060233,-905.33354857,0.00096,120]
[355792452,1741563060244,-7061.58568127,0.000975,30]
[355792453,1741563060255,-421.432484,0.000977,30]
[355792454,1741563060265,-421.432484,0.000977,30]
[355792455,1741563060277,-151.0,0.000977,120]
[355792456,1741563060287,-151.0,0.000977,120]
[355792457,1741563060298,-3470.32001417,0.0009876,120]
[355792458,1741563060308,-150.0,0.00099163,15]
[355792459,1741563060319,-500.0,0.00099741,120]
[355792460,1741563060330,-419.0,0.00099983,120]
[355792461,1741563060341,-10000.0,0.001,120]
[355792462,1741563060354,-999.0,0.001,120]
[355792463,1741563060364,-183.873572,0.001,2]
[355792464,1741563060375,-1134.14274316,0.001,120]
[355792465,1741563060387,-50000.00682192,0.001,30]
[355792466,1741563060399,-5463.30008306,0.0010137,12]
[355792467,1741563060409,-150.0,0.00104642,15]
[355792468,1741563060421,-500.0,0.00105061,120]
[355792469,1741563060431,-3500.0,0.00106939,60]
[355792470,1741563060579,-3000.0,0.00107235,60]
[355792471,1741563060591,-3000.0,0.00107235,14]
[355792472,1741563060601,-581.95553,0.00109,73]
[355792473,1741563060610,-666.0,0.00109589,120]
[355792474,1741563060621,-150.0,0.00110122,15]
[355792475,1741563060631,-500.0,0.00110382,120]
[355792476,1741563060644,-150.0,0.00115601,15]
[355792477,1741563060654,-500.0,0.00115703,120]
[355792478,1741563060664,-151.0,0.00115753,120]
[355792479,1741563060673,-162.39,0.0012,60]
[355792480,1741563060684,-500.0,0.00121024,120]
[355792481,1741563060694,-150.0,0.00121081,15]
[355792482,1741563060705,-2309.94,0.001212,30]
[355792483,1741563060714,-666.0,0.00123287,120]
[355792484,1741563060725,-5000.0,0.001245,120]
[355792485,1741563060735,-500.0,0.00126345,120]
[355792486,1741563060746,-3500.0,0.00126504,60]
[355792487,1741563060756,-3500.0,0.00126504,14]
[355792488,1741563060766,-150.0,0.0012656,15]
[355792489,1741563060776,-4000.0,0.00127889,60]
[355792490,1741563060786,-4890.54,0.0013,60]
[355792491,1741563060795,-500.0,0.00131666,120]
[355792492,1741563060805,-150.0,0.00132039,15]
[355792493,1741563060815,-666.0,0.00136986,120]
[355792494,1741563060825,-335.127911,0.00136986,120]
[355792495,1741563060836,-500.0,0.00136987,120]
[355792496,1741563060847,-150.0,0.00137519,15]
[355792497,1741563060856,-549.678,0.00140888,120]
[355792498,1741563060867,-1944.0,0.00140888,120]
[355792499,1741563060877,-2274.0,0.00140888,120]
[355792500,1741563060888,-398.0,0.00140888,2]
[355792501,1741563060899,-150.0,0.00142998,15]
[355792502,1741563060908,-540.0,0.00143888,120]
[355792503,1741563060919,-1944.0,0.00143888,120]
[355792504,1741563060928,-2274.0,0.00143888,120]
[355792505,1741563060938,-398.0,0.00143888,2]
[355792506,1741563060948,-335.127911,0.00144196,120]
[355792507,1741563060958,-540.0,0.00146888,120]
[355792508,1741563060968,-1944.0,0.00146888,120]
[355792509,1741563060978,-2274.0,0.00146888,120]
[355792510,1741563060988,-398.0,0.00146888,2]
[355792511,1741563060999,-4000.0,0.00147453,120]
[355792512,1741563061009,-4000.0,0.00147453,14]
[355792513,1741563061019,-150.0,0.00148478,15]
[355792514,1741563061029,-540.0,0.00149888,120]
[355792515,1741563061038,-1944.0,0.00149888,120]
[355792516,1741563061048,-2274.0,0.00149888,120]
[355792517,1741563061059,-398.0,0.00149888,2]
[355792518,1741563061069,-2000.0,0.0015,120]
[355792519,1741563061081,-1360.18728595,0.0015,120]
[355792520,1741563061092,-4500.0,0.00150394,120]
[355792521,1741563061102,-520.5670471,0.00150684,120]
[355792522,1741563061112,-151.0,0.00151123,120]
[355792523,1741563061122,-335.127911,0.00151406,120]
[355792524,1741563061132,-540.0,0.00152888,120]
[355792525,1741563061144,-1944.0,0.00152888,120]
[355792526,1741563061153,-2274.0,0.00152888,120]
[355792527,1741563061163,-398.0,0.00152888,2]
[355792528,1741563061174,-150.0,0.00153957,15]
[355792529,1741563061185,-1732.45,0.00154,120]
[355792530,1741563061196,-540.0,0.00155888,120]
[355792531,1741563061206,-1944.0,0.00155888,120]
[355792532,1741563061216,-2274.0,0.00155888,120]
[355792533,1741563061227,-398.0,0.00155888,2]
[355792534,1741563061238,-335.127911,0.00158616,120]
[355792535,1741563061248,-540.0,0.00158888,120]
[355792536,1741563061259,-1944.0,0.00158888,120]
[355792537,1741563061269,-2274.0,0.00158888,120]
[355792538,1741563061281,-398.0,0.00158888,2]
[355792539,1741563061293,-150.0,0.00159437,15]
[355792540,1741563061305,-540.0,0.00161888,120]
[355792541,1741563061318,-1944.0,0.00161888,120]
[355792542,1741563061328,-2274.0,0.00161888,120]
[355792543,1741563061340,-398.0,0.00161888,2]
[355792544,1741563061352,-540.0,0.00164888,120]
[355792545,1741563061363,-1944.0,0.00164888,120]
[355792546,1741563061374,-2274.0,0.00164888,120]
[355792547,1741563061385,-398.0,0.00164888,2]
[355792548,1741563061400,-207.76961816,0.00164916,15]
[355792549,1741563061410,-335.127911,0.00165826,120]
[355792550,1741563061420,-540.0,0.00167888,120]
[355792551,1741563061431,-1944.0,0.00167888,120]
[355792552,1741563061441,-2274.0,0.00167888,120]
[355792553,1741563061451,-398.0,0.00167888,2]
[355792554,1741563061461,-4500.0,0.00169958,120]
[355792555,1741563061471,-4500.0,0.00169958,14]
[355792556,1741563061481,-540.0,0.00170888,120]
[355792557,1741563061491,-1944.0,0.00170888,120]
[355792558,1741563061501,-2274.0,0.00170888,120]
[355792559,1741563061511,-398.0,0.00170888,2]
[355792560,1741563061522,-335.127911,0.00173035,120]
[355792561,1741563061533,-540.0,0.00173888,120]
[355792562,1741563061543,-1944.0,0.00173888,120]
[355792563,1741563061553,-2274.0,0.00173888,120]
[355792564,1741563061563,-398.0,0.00173888,2]
[355792565,1741563061572,-5000.0,0.00174353,120]
[355792566,1741563061582,-421.432484,0.001744,30]
[355792567,1741563061592,-421.432484,0.001744,30]
[355792568,1741563061602,-151.0,0.001744,120]
[355792569,1741563061611,-151.0,0.001744,120]
[355792570,1741563061621,-540.0,0.00176888,120]
[355792571,1741563061631,-1944.0,0.00176888,120]
[355792572,1741563061642,-2274.0,0.00176888,120]
[355792573,1741563061651,-398.0,0.00176888,2]
[355792574,1741563061661,-540.0,0.00179888,120]
[355792575,1741563061670,-1944.0,0.00179888,120]
[355792576,1741563061680,-2274.0,0.00179888,120]
[355792577,1741563061692,-398.0,0.00179888,2]
[355792578,1741563061708,-2999.0,0.0018,120]
[355792579,1741563061718,-335.127911,0.00180245,120]
[355792580,1741563061727,-540.0,0.00182888,120]
[355792581,1741563061737,-1944.0,0.00182888,120]
[355792582,1741563061747,-2274.0,0.00182888,120]
[355792583,1741563061757,-398.0,0.00182888,2]
[355792584,1741563061766,-628.35,0.0018496,91]
[355792585,1741563061776,-540.0,0.00185888,120]
[355792586,1741563061786,-1944.0,0.00185888,120]
[355792587,1741563061796,-2274.0,0.00185888,120]
[355792588,1741563061807,-398.0,0.00185888,2]
[355792589,1741563061817,-151.0,0.00186493,120]
[355792590,1741563061832,-335.127911,0.00187455,120]
[355792591,1741563061842,-540.0,0.00188888,120]
[355792592,1741563061852,-1944.0,0.00188888,120]
[355792593,1741563061862,-2274.0,0.00188888,120]
[355792594,1741563061873,-398.0,0.00188888,2]
[355792595,1741563061883,-20000.0,0.00189,120]
[355792596,1741563061895,-540.0,0.00191888,120]
[355792597,1741563061906,-1944.0,0.00191888,120]
[355792598,1741563061915,-2274.0,0.00191888,120]
[355792599,1741563061926,-5000.0,0.00193918,120]
[355792600,1741563061935,-5000.0,0.00193918,14]
[355792601,1741563061944,-335.127911,0.00194665,120]
[355792602,1741563061954,-540.0,0.00194888,120]
[355792603,1741563061965,-1944.0,0.00194888,120]
[355792604,1741563061974,-2274.0,0.00194888,120]
[355792605,1741563061985,-133654.055509,0.00197513,60]
[355792606,1741563061995,-540.0,0.00197888,120]
[355792607,1741563062005,-1944.0,0.00197888,120]
[355792608,1741563062015,-2274.0,0.00197888,120]
[355792609,1741563062024,-5500.0,0.00199683,120]
[355792610,1741563062035,-2000.0,0.002,120]
[355792611,1741563062045,-4652.0,0.002,120]
[355792612,1741563062055,-10000.0,0.002,120]
[355792613,1741563062065,-540.0,0.00200888,120]
[355792614,1741563062075,-1944.0,0.00200888,120]
[355792615,1741563062084,-2274.0,0.00200888,120]
[355792616,1741563062094,-335.127911,0.00201875,120]
[355792617,1741563062104,-551.896,0.00203888,120]
[355792618,1741563062113,-285.384,0.00203888,120]
[355792619,1741563062123,-335.127911,0.00209084,120]
[355792620,1741563062133,-335.127911,0.00216294,120]
[355792621,1741563062146,-5500.0,0.00219248,120]
[355792622,1741563062156,-5500.0,0.00219248,14]
[355792623,1741563062166,-151.0,0.00221863,120]
[355792624,1741563062175,-335.127911,0.00223504,120]
[355792625,1741563062185,-2569.32324788,0.00226,106]
[355792626,1741563062197,-6000.0,0.00226314,120]
[355792627,1741563062206,-246.72,0.0023,60]
[355792628,1741563062216,-335.127911,0.00230714,120]
[355792629,1741563062226,-151.0,0.00236,120]
[355792630,1741563062236,-335.127911,0.00237924,120]
[355792631,1741563062246,-5000.0,0.00242,120]
[355792632,1741563062255,-335.127911,0.00245133,120]
[355792633,1741563062266,-6000.0,0.00245879,120]
[355792634,1741563062275,-6000.0,0.00245879,14]
[355792635,1741563062286,-167.45,0.0025,60]
[355792636,1741563062296,-734.05,0.0025,60]
[355792637,1741563062306,-472.75,0.0025,60]
[355792638,1741563062316,-335.127911,0.00252343,120]
[355792639,1741563062326,-6500.0,0.00254185,120]
[355792640,1741563062335,-151.0,0.00257233,120]
[355792641,1741563062347,-335.127911,0.00259553,120]
[355792642,1741563062359,-1000.0,0.0026,120]
[355792643,1741563062369,-2408.54198002,0.00266383,79]
[355792644,1741563062378,-335.127911,0.00266763,120]
[355792645,1741563062390,-6148.58699075,0.00273749,120]
[355792646,1741563062399,-6500.0,0.00273749,14]
[355792647,1741563062409,-421.432484,0.00273973,30]
[355792648,1741563062418,-421.432484,0.00273973,30]
[355792649,1741563062430,-421.432484,0.00273973,30]
[355792650,1741563062440,-421.432484,0.00273973,30]
[355792651,1741563062450,-421.432484,0.00273973,30]
[355792652,1741563062460,-421.432484,0.00273973,30]
[355792653,1741563062471,-421.432484,0.00273973,30]
[355792654,1741563062481,-421.432485,0.00273973,30]
[355792655,1741563062491,-151.0,0.00273973,120]
[355792656,1741563062501,-151.0,0.00273973,120]
[355792657,1741563062511,-151.0,0.00273973,120]
[355792658,1741563062521,-162.266252,0.00273973,120]
[355792659,1741563062531,-151.0,0.00273973,120]
[355792660,1741563062540,-151.0,0.00273973,120]
[355792661,1741563062550,-151.0,0.00273973,120]
[355792662,1741563062560,-166.480911,0.00273973,120]
[355792663,1741563062570,-151.0,0.00273973,120]
[355792664,1741563062582,-151.0,0.00273973,120]
[355792665,1741563062592,-151.0,0.00273973,120]
[355792666,1741563062602,-151.0,0.00273973,120]
[355792667,1741563062611,-151.0,0.00273973,120]
[355792668,1741563062621,-151.0,0.00273973,120]
[355792669,1741563062631,-201.911793,0.00273973,120]
[355792670,1741563062642,-151.0,0.00273973,120]
[355792671,1741563062652,-151.0,0.00273973,120]
[355792672,1741563062661,-151.0,0.00273973,120]
[355792673,1741563062671,-151.0,0.00273973,120]
[355792674,1741563062680,-151.0,0.00273973,120]
[355792675,1741563062689,-151.0,0.00273973,90]
[355792676,1741563062704,-151.0,0.00273973,90]
[355792677,1741563062726,-151.0,0.00273973,90]
[355792678,1741563062737,-151.0,0.00273973,90]
[355792679,1741563062747,-151.0,0.00273973,90]
[355792680,1741563062756,-151.0,0.00273973,90]
[355792681,1741563062766,-151.0,0.00273973,90]
[355792682,1741563062775,-151.0,0.00273973,90]
[355792683,1741563062786,-151.0,0.00273973,90]
[355792684,1741563062796,-289.031368,0.00273973,90]
[355792685,1741563062806,-1361.658682,0.00273973,120]
[355792686,1741563062816,-1361.658682,0.00273973,120]
[355792687,1741563062826,-1361.658682,0.00273973,120]
[355792688,1741563062836,-1361.658682,0.00273973,120]
[355792689,1741563062846,-1361.658682,0.00273973,120]
[355792690,1741563062856,-1361.658682,0.00273973,120]
[355792691,1741563062865,-1361.658682,0.00273973,120]
[355792692,1741563062874,-1361.658682,0.00273973,120]
[355792693,1741563062884,-1361.658691,0.00273973,120]
[355792694,1741563062895,-655.991661,0.00273973,120]
[355792695,1741563062904,-655.991661,0.00273973,120]
[355792696,1741563062913,-655.991661,0.00273973,120]
[355792697,1741563062923,-655.991661,0.00273973,120]
[355792698,1741563062933,-655.991661,0.00273973,120]
[355792699,1741563062943,-655.991661,0.00273973,120]
[355792700,1741563062953,-655.991661,0.00273973,120]
[355792701,1741563062963,-655.991661,0.00273973,120]
[355792702,1741563062972,-655.991661,0.00273973,120]
[355792703,1741563062982,-655.991661,0.00273973,120]
[355792704,1741563062992,-655.991661,0.00273973,120]
[355792705,1741563063001,-655.991661,0.00273973,120]
[355792706,1741563063012,-655.991661,0.00273973,120]
[355792707,1741563063021,-655.991661,0.00273973,120]
[355792708,1741563063032,-655.991661,0.00273973,120]
[355792709,1741563063047,-655.991661,0.00273973,120]
[355792710,1741563063058,-655.991661,0.00273973,120]
[355792711,1741563063212,-655.991661,0.00273973,120]
[355792712,1741563063224,-655.991661,0.00273973,120]
[355792713,1741563063234,-151.0,0.00273973,10]
[355792714,1741563063244,-151.0,0.00273973,10]
[355792715,1741563063253,-151.0,0.00273973,10]
[355792716,1741563063264,-151.0,0.00273973,10]
[355792717,1741563063284,-151.0,0.00273973,10]
[355792718,1741563063303,-151.0,0.00273973,10]
[355792719,1741563063314,-242.129729,0.00273973,110]
[355792720,1741563063325,-242.129729,0.00273973,110]
[355792721,1741563063336,-242.129729,0.00273973,110]
[355792722,1741563063346,-242.129729,0.00273973,110]
[355792723,1741563063361,-242.129729,0.00273973,110]
[355792724,1741563063371,-242.129729,0.00273973,110]
[355792725,1741563063381,-242.129729,0.00273973,110]
[355792726,1741563063392,-242.129729,0.00273973,110]
[355792727,1741563063402,-242.129729,0.00273973,110]
[355792728,1741563063412,-242.129729,0.00273973,110]
[355792729,1741563063423,-242.129729,0.00273973,110]
[355792730,1741563063432,-242.129729,0.00273973,110]
[355792731,1741563063442,-242.129729,0.00273973,110]
[355792732,1741563063453,-242.129729,0.00273973,110]
[355792733,1741563063463,-242.129729,0.00273973,110]
[355792734,1741563063473,-242.129729,0.00273973,110]
[355792735,1741563063483,-242.129729,0.00273973,110]
[355792736,1741563063493,-242.129729,0.00273973,110]
[355792737,1741563063504,-242.129729,0.00273973,110]
[355792738,1741563063514,-242.129732,0.00273973,110]
[355792739,1741563063525,-249.828636,0.00273973,120]
[355792740,1741563063536,-249.828636,0.00273973,120]
[355792741,1741563063546,-249.828636,0.00273973,120]
[355792742,1741563063556,-249.828636,0.00273973,120]
[355792743,1741563063566,-249.828636,0.00273973,120]
[355792744,1741563063576,-249.828636,0.00273973,120]
[355792745,1741563063585,-151.0,0.00273973,120]
[355792746,1741563063595,-151.0,0.00273973,120]
[355792747,1741563063605,-249.828636,0.00273973,120]
[355792748,1741563063615,-151.0,0.00273973,120]
[355792749,1741563063626,-151.0,0.00273973,120]
[355792750,1741563063636,-151.0,0.00273973,120]
[355792751,1741563063649,-249.828636,0.00273973,120]
[355792752,1741563063660,-151.0,0.00273973,120]
[355792753,1741563063669,-249.828636,0.00273973,120]
[355792754,1741563063679,-151.0,0.00273973,120]
[355792755,1741563063689,-249.828636,0.00273973,120]
[355792756,1741563063699,-249.828636,0.00273973,120]
[355792757,1741563063710,-249.828636,0.00273973,120]
[355792758,1741563063720,-151.0,0.00273973,120]
[355792759,1741563063731,-249.828636,0.00273973,120]
[355792760,1741563063741,-151.0,0.00273973,120]
[355792761,1741563063751,-249.828636,0.00273973,120]
[355792762,1741563063761,-151.0,0.00273973,120]
[355792763,1741563063771,-249.828636,0.00273973,120]
[355792764,1741563063782,-158.328284,0.00273973,120]
[355792765,1741563063793,-249.828636,0.00273973,120]
[355792766,1741563063803,-249.828636,0.00273973,120]
[355792767,1741563063814,-249.828636,0.00273973,120]
[355792768,1741563063824,-249.828636,0.00273973,120]
[355792769,1741563063835,-185.623526,0.00273973,120]
[355792770,1741563063846,-185.623526,0.00273973,120]
[355792771,1741563063856,-185.623526,0.00273973,120]
[355792772,1741563063866,-185.623526,0.00273973,120]
[355792773,1741563063876,-185.623526,0.00273973,120]
[355792774,1741563063888,-185.623526,0.00273973,120]
[355792775,1741563063903,-185.623526,0.00273973,120]
[355792776,1741563063914,-185.623526,0.00273973,120]
[355792777,1741563063925,-185.623526,0.00273973,120]
[355792778,1741563063936,-185.623526,0.00273973,120]
[355792779,1741563063947,-185.623526,0.00273973,120]
[355792780,1741563063957,-185.623526,0.00273973,120]
[355792781,1741563063967,-185.623526,0.00273973,120]
[355792782,1741563063977,-185.623526,0.00273973,120]
[355792783,1741563063987,-185.623526,0.00273973,120]
[355792784,1741563063998,-185.623526,0.00273973,120]
[355792785,1741563064008,-185.623526,0.00273973,120]
[355792786,1741563064018,-185.623526,0.00273973,120]
[355792787,1741563064027,-185.623526,0.00273973,120]
[355792788,1741563064037,-185.623533,0.00273973,120]
[355792789,1741563064046,-685.016129,0.00273973,120]
[355792790,1741563064056,-685.016129,0.00273973,120]
[355792791,1741563064066,-685.016129,0.00273973,120]
[355792792,1741563064076,-685.016129,0.00273973,120]
[355792793,1741563064086,-685.016129,0.00273973,120]
[355792794,1741563064097,-685.016129,0.00273973,120]
[355792795,1741563064107,-685.016129,0.00273973,120]
[355792796,1741563064118,-685.016129,0.00273973,120]
[355792797,1741563064128,-685.016129,0.00273973,120]
[355792798,1741563064138,-685.016129,0.00273973,120]
[355792799,1741563064149,-685.016129,0.00273973,120]
[355792800,1741563064159,-685.016129,0.00273973,120]
[355792801,1741563064170,-685.016129,0.00273973,120]
[355792802,1741563064180,-685.016129,0.00273973,120]
[355792803,1741563064190,-685.016129,0.00273973,120]
[355792804,1741563064201,-685.016129,0.00273973,120]
[355792805,1741563064211,-685.016129,0.00273973,120]
[355792806,1741563064222,-685.016129,0.00273973,120]
[355792807,1741563064234,-685.016129,0.00273973,120]
[355792808,1741563064244,-685.016129,0.00273973,120]
[355792809,1741563064254,-151.0,0.00273973,120]
[355792810,1741563064265,-151.0,0.00273973,120]
[355792811,1741563064275,-235.913536,0.00273973,120]
[355792812,1741563064286,-151.0,0.00273973,120]
[355792813,1741563064296,-151.0,0.00273973,120]
[355792814,1741563064306,-151.0,0.00273973,120]
[355792815,1741563064316,-151.0,0.00273973,120]
[355792816,1741563064327,-151.0,0.00273973,120]
[355792817,1741563064337,-151.0,0.00273973,120]
[355792818,1741563064351,-151.0,0.00273973,120]
[355792819,1741563064362,-151.0,0.00273973,120]
[355792820,1741563064372,-151.0,0.00273973,120]
[355792821,1741563064382,-151.0,0.00273973,120]
[355792822,1741563064397,-151.0,0.00273973,120]
[355792823,1741563064408,-151.0,0.00273973,120]
[355792824,1741563064419,-151.0,0.00273973,120]
[355792825,1741563064430,-151.0,0.00273973,120]
[355792826,1741563064444,-151.0,0.00273973,120]
[355792827,1741563064454,-151.0,0.00273973,120]
[355792828,1741563064465,-151.0,0.00273973,120]
[355792829,1741563064475,-151.0,0.00273973,120]
[355792830,1741563064486,-212.555042,0.00273973,120]
[355792831,1741563064497,-151.0,0.00273973,120]
[355792832,1741563064507,-151.0,0.00273973,120]
[355792833,1741563064517,-151.0,0.00273973,120]
[355792834,1741563064528,-151.0,0.00273973,120]
[355792835,1741563064539,-200.303231,0.00273973,120]
[355792836,1741563064549,-151.0,0.00273973,120]
[355792837,1741563064559,-151.0,0.00273973,120]
[355792838,1741563064570,-297.421832,0.00273973,120]
[355792839,1741563064580,-151.0,0.00273973,120]
[355792840,1741563064591,-151.0,0.00273973,120]
[355792841,1741563064602,-153.847753,0.00273973,120]
[355792842,1741563064613,-244.315038,0.00273973,120]
[355792843,1741563064623,-244.315038,0.00273973,120]
[355792844,1741563064633,-244.315038,0.00273973,120]
[355792845,1741563064645,-387.133987,0.00273973,120]
[355792846,1741563064655,-244.315038,0.00273973,120]
[355792847,1741563064665,-387.133987,0.00273973,120]
[355792848,1741563064675,-244.315038,0.00273973,120]
[355792849,1741563064685,-387.133987,0.00273973,120]
[355792850,1741563064696,-151.0,0.00273973,120]
[355792851,1741563064707,-244.315038,0.00273973,120]
[355792852,1741563064718,-387.133987,0.00273973,120]
[355792853,1741563064729,-151.0,0.00273973,120]
[355792854,1741563064739,-244.315038,0.00273973,120]
[355792855,1741563064749,-151.0,0.00273973,120]
[355792856,1741563064759,-244.315038,0.00273973,120]
[355792857,1741563064770,-151.0,0.00273973,120]
[355792858,1741563064779,-244.315038,0.00273973,120]
[355792859,1741563064789,-151.0,0.00273973,120]
[355792860,1741563064799,-283.326254,0.00273973,120]
[355792861,1741563064810,-387.133987,0.00273973,120]
[355792862,1741563064820,-387.133987,0.00273973,120]
[355792863,1741563064829,-244.315038,0.00273973,120]
[355792864,1741563064839,-387.133987,0.00273973,120]
[355792865,1741563064849,-244.315038,0.00273973,120]
[355792866,1741563064858,-387.133987,0.00273973,120]
[355792867,1741563064868,-244.315038,0.00273973,120]
[355792868,1741563064877,-387.133987,0.00273973,120]